bitfinex-derivatives/quotes_ETHF0:USTF0_20240830
["timestamp","ask_amount","ask_price","bid_price","bid_amount"]
[1724983118754,1.13865871,2526.7,2526.5,0.78374]
[1724983118951,1.13865871,2526.7,2526.6,0.3604]
[1724983119358,2.56865871,2526.7,2526.4,0.39575]
[1724983119650,0.39573,2526.6,2526.4,0.75615]
[1724983121061,0.39573,2526.6,2526.4,0.3604]
[1724983121758,2.56865871,2526.7,2526.4,0.75615]
[1724983122150,0.39573,2526.6,2526.4,0.75615]
[1724983122474,1.43,2526.5,2526.3,40.8]
[1724983122765,0.39579,2526.2,2526.0,0.3618]
[1724983122953,0.39579,2526.2,2526.0,0.75762]
[1724983123265,0.39579,2526.2,2526.1,44.89282552]
[1724983123864,0.39579,2526.2,2526.1,4.09282552]
[1724983124661,1.82579,2526.2,2526.1,4.09282552]
[1724983125655,0.39579,2526.2,2526.1,4.09282552]
[1724983127466,0.39582,2526.1,2525.8,40.8]
[1724983127663,0.38,2526.0,2525.8,40.8]
[1724983127866,0.77582,2526.0,2525.8,40.8]
[1724983128669,0.38,2526.0,2525.8,40.8]
[1724983128966,0.39581,2526.1,2525.8,40.8]
[1724983130958,0.39582,2526.0,2525.8,40.8]
[1724983131253,0.39582,2526.0,2525.8,41.19585]
[1724983131457,0.7492,2526.3,2525.8,42.62585]
[1724983131664,0.39575,2526.5,2526.2,4.6378]
[1724983131964,0.39576,2526.4,2526.3,1.0852]
[1724983132259,0.39576,2526.4,2526.3,41.8852]
[1724983133456,0.39575,2526.5,2526.3,41.8852]
[1724983134768,0.39576,2526.4,2526.3,41.8852]
[1724983135260,0.39576,2526.4,2526.3,41.1643]
[1724983135460,0.3958,2526.2,2526.0,0.7252]
[1724983135660,0.3834,2526.3,2525.9,7.30062552]
[1724983135865,0.39581,2526.1,2525.9,44.89282552]
[1724983139165,0.39582,2526.0,2525.9,44.89282552]
[1724983139364,0.39582,2526.0,2525.9,40.8]
[1724983139871,0.39581,2526.1,2525.9,40.8]
[1724983143366,0.39582,2526.0,2525.9,40.8]
[1724983143565,0.39583,2525.9,2525.8,1.0973]
[1724983143959,0.39583,2525.9,2525.8,41.8973]
[1724983144366,4.12550142,2526.1,2525.8,41.8973]
[1724983144567,4.52131142,2526.1,2525.8,41.8973]
[1724983145268,0.39582,2526.0,2525.8,41.8973]
[1724983146974,4.12550142,2526.1,2525.8,41.8973]
[1724983147171,0.39583,2525.9,2525.8,41.8973]
[1724983150070,5.96360479,2525.9,2525.5,4.09282552]
[1724983150377,0.39588,2525.6,2525.5,0.3818]
[1724983150577,0.39588,2525.6,2525.5,41.1818]
[1724983150765,0.39588,2525.6,2525.5,0.3818]
[1724983153065,0.39587,2525.7,2525.5,0.3818]
[1724983153470,0.39588,2525.6,2525.5,0.3818]
[1724983154476,0.3959,2525.5,2525.4,41.5529]
[1724983155574,0.39589,2525.6,2525.4,41.5529]
[1724983156285,0.3959,2525.5,2525.4,41.5529]
[1724983156685,0.3959,2525.5,2525.4,40.8]
[1724983156879,0.39591,2525.4,2525.3,0.3832]
[1724983157183,1.13141,2525.4,2525.3,0.3832]
[1724983157379,1.13141,2525.4,2525.3,41.1832]
[1724983157588,1.13141,2525.4,2525.3,0.3832]
[1724983158985,0.39593,2525.3,2525.2,0.00593871]
[1724983159178,0.78543,2525.3,2525.2,0.00593871]
[1724983160594,0.39593,2525.3,2525.2,0.00593871]
[1724983164188,1.13142,2525.4,2525.2,0.00593871]
[1724983164383,5.03371,2525.5,2525.2,0.40187871]
[1724983164793,3.60371,2525.5,2525.2,0.00593871]
[1724983165089,3.60371,2525.5,2525.3,40.8]
[1724983165497,3.60371,2525.5,2525.4,0.3735]
[1724983166987,3.2078,2525.5,2525.2,0.00593871]
[1724983167697,0.39593,2525.3,2525.2,0.00593871]
[1724983172305,0.76062,2525.4,2525.2,0.00593871]
[1724983172604,0.39592,2525.4,2525.2,0.00593871]
[1724983173994,0.39593,2525.3,2525.2,0.00593871]
[1724983179107,1.7987,2525.6,2525.2,0.00593871]
[1724983179312,0.39592,2525.4,2525.2,0.00593871]
[1724983181311,0.39593,2525.3,2525.2,0.00593871]
[1724983182020,0.39592,2525.4,2525.2,0.40187871]
[1724983182613,0.39592,2525.4,2525.3,0.372]
[1724983183616,0.39592,2525.4,2525.2,0.00593871]
[1724983183617,0.39593,2525.3,2525.2,0.00593871]
[1724983183820,1.49693,2525.3,2525.2,0.00593871]
[1724983184624,0.39592,2525.4,2525.2,0.00593871]
[1724983186319,0.39593,2525.3,2525.2,0.00593871]
[1724983186818,0.39592,2525.4,2525.2,0.00593871]
[1724983188220,0.39592,2525.4,2525.2,0.40187871]
[1724983188532,0.39593,2525.3,2525.2,0.00593871]
[1724983191722,0.76152,2525.4,2525.2,0.40186871]
[1724983192014,0.3656,2525.4,2525.3,0.39593]
[1724983193624,0.3631,2525.5,2525.4,0.39591]
[1724983193825,3.2078,2525.7,2525.3,1.03023041]
[1724983194119,3.2078,2525.7,2525.4,0.3664]
[1724983194120,0.39589,2525.6,2525.4,0.3664]
[1724983194320,0.3959,2525.5,2525.4,0.3664]
[1724983196019,0.3775,2525.6,2525.4,0.3664]
[1724983196320,0.3959,2525.5,2525.4,0.3664]
[1724983196521,0.77342,2525.6,2525.4,0.3664]
[1724983198621,0.3775,2525.6,2525.4,1.79257041]
[1724983198820,0.3775,2525.6,2525.4,0.76234]
[1724983199217,0.3775,2525.6,2525.4,1.79257041]
[1724983199632,0.3775,2525.6,2525.5,0.39594]
[1724983200429,0.3775,2525.6,2525.4,0.76234]
[1724983200430,0.77342,2525.6,2525.4,0.76234]
[1724983201417,0.77342,2525.6,2525.4,0.76235]
[1724983201628,3.5712,2525.8,2525.4,1.39663041]
[1724983201829,3.96709,2525.8,2525.6,0.39591]
[1724983202030,3.5712,2525.8,2525.6,0.39591]
[1724983202230,3.5712,2525.8,2525.5,0.7649]
[1724983202231,3.9671,2525.8,2525.7,0.3605]
[1724983202424,3.5712,2525.8,2525.7,0.3605]
[1724983202728,0.3536,2525.9,2525.7,0.7564]
[1724983203426,5.02,2526.1,2525.7,0.7564]
[1724983203427,3.2078,2526.1,2526.0,0.39586]
[1724983204025,3.2078,2526.1,2526.0,0.76916]
[1724983204232,0.3617,2526.2,2526.0,0.76916]
[1724983204427,0.3617,2526.2,2526.0,0.3733]
[1724983205424,0.75753,2526.2,2526.0,0.3733]
[1724983205827,0.3617,2526.2,2526.0,0.3733]
[1724983206432,0.3617,2526.2,2525.9,0.39586]
[1724983206731,1.43,2526.1,2525.9,0.39587]
[1724983206935,0.75754,2526.2,2526.0,1.0981]
[1724983207135,0.75753,2526.2,2526.0,1.0981]
[1724983208235,0.75753,2526.2,2526.0,1.49396]
[1724983208539,0.75753,2526.2,2526.0,1.0981]
[1724983210927,0.39587,2525.9,2525.6,4.48873552]
[1724983211238,0.39587,2525.9,2525.6,4.09282552]
[1724983211239,1.1508,2525.8,2525.6,4.09282552]
[1724983211433,1.82591,2525.7,2525.6,4.09282552]
[1724983211834,0.39595,2525.5,2525.2,0.00593871]
[1724983212035,0.78445,2525.4,2525.2,0.00593871]
[1724983212238,0.3852,2525.3,2525.2,0.00593871]
[1724983213238,0.78445,2525.4,2525.2,0.00593871]
[1724983213239,0.3885,2525.4,2525.2,0.40191871]
[1724983213439,0.3852,2525.7,2525.2,4.33623871]
[1724983213641,0.3852,2525.7,2525.2,1.40646912]
[1724983213840,0.3852,2525.7,2525.5,0.39594]
[1724983214636,0.3852,2525.7,2525.3,1.43]
[1724983214840,0.3852,2525.7,2525.5,0.39593]
[1724983215951,0.3852,2525.7,2525.3,2.46023041]
[1724983216138,0.3852,2525.7,2525.3,1.43]
[1724983216651,0.3852,2525.7,2525.4,0.39595]
[1724983217147,0.3852,2525.7,2525.5,0.39594]
[1724983218036,0.773,2525.8,2525.6,0.3694]
[1724983219044,0.773,2525.8,2525.3,0.39595]
[1724983219045,0.39591,2525.7,2525.3,0.39595]
[1724983219246,0.3736,2525.6,2525.3,0.39595]
[1724983219643,0.356,2525.5,2525.4,0.39595]
[1724983219846,0.356,2525.5,2525.3,0.39596]
[1724983221053,0.39597,2525.4,2525.2,0.39263871]
[1724983221352,0.3678,2525.4,2525.2,0.00593871]
[1724983221544,0.3678,2525.4,2525.3,0.3602]
[1724983222057,0.76375,2525.4,2525.2,0.00593871]
[1724983224465,0.39597,2525.3,2525.2,0.00593871]
[1724983225368,4.35597,2525.3,2525.2,0.00593871]
[1724983225572,9.85718664,2525.3,2525.2,0.00593871]
[1724983225958,16.84711664,2525.3,2525.2,0.00593871]
[1724983226161,0.98997,2525.2,2524.3,1.78443041]
[1724983226365,0.39608,2524.6,2524.4,40.8]
[1724983227973,0.77997,2524.7,2524.4,41.19611]
[1724983228175,0.36123871,2524.8,2524.6,0.39608]
[1724983228176,0.00593871,2524.8,2524.6,0.39608]
[1724983228363,0.00593871,2524.8,2524.7,0.3585]
[1724983228563,0.00593871,2524.8,2524.7,1.47746]
[1724983228764,0.00593871,2524.8,2524.7,1.0814]
[1724983229458,0.00593871,2524.8,2524.5,0.39608]
[1724983229459,0.40198871,2524.8,2524.5,0.39608]
[1724983229659,0.364,2524.7,2524.5,0.39608]
[1724983229866,0.7442,2524.7,2524.5,0.39608]
[1724983230171,0.7442,2524.7,2524.4,41.5253]
[1724983230172,0.7442,2524.7,2524.4,40.8]
[1724983230363,0.3714,2524.6,2524.4,40.8]
[1724983230564,0.39609,2524.5,2524.4,40.8]
[1724983231063,0.39609,2524.5,2524.2,0.00593871]
[1724983231259,0.39612,2524.3,2524.2,0.00593871]
[1724983231570,5.95795487,2524.3,2524.2,0.00593871]
[1724983231769,0.39627,2523.4,2523.1,4.23803041]
[1724983231968,3.2078,2523.7,2523.1,3.97091]
[1724983232170,3.2078,2523.7,2523.1,3.5746]
[1724983232576,3.60402,2523.7,2523.2,0.3963]
[1724983232771,3.21373871,2523.7,2523.3,0.39628]
[1724983233569,3.60995871,2523.7,2523.2,0.40222871]
[1724983233771,3.21373871,2523.7,2523.2,0.00593871]
[1724983233972,0.39624,2523.6,2523.2,0.00593871]
[1724983234179,0.39626,2523.5,2523.2,0.00593871]
[1724983234480,0.75154,2523.6,2523.2,0.00593871]
[1724983234862,0.39628,2523.4,2523.2,0.00593871]
[1724983235368,0.39628,2523.3,2523.2,0.00593871]
[1724983235982,4.43631578,2523.5,2523.2,0.00593871]
[1724983236186,3.5631,2523.6,2523.2,0.40222871]
[1724983236375,3.5631,2523.6,2523.3,0.7406]
[1724983237272,7.37934,2523.6,2523.3,0.7406]
[1724983237479,6.9831,2523.6,2523.3,0.7406]
[1724983238176,7.37934,2523.6,2523.3,0.7406]
[1724983238379,3.5631,2523.6,2523.3,0.7406]
[1724983238672,3.5631,2523.6,2523.3,1.13688]
[1724983239075,3.2078,2523.6,2523.4,0.39627]
[1724983239271,3.2078,2523.6,2523.3,1.13687]
[1724983239977,3.2078,2523.6,2523.3,0.7406]
[1724983239978,3.60404,2523.6,2523.3,0.7406]
[1724983240177,3.5945,2523.6,2523.3,0.7406]
[1724983240377,3.2078,2523.6,2523.3,0.7406]
[1724983240575,3.2078,2523.6,2523.3,1.13683]
[1724983241175,3.2078,2523.6,2523.4,0.39622]
[1724983241382,3.2078,2523.6,2523.3,1.13683]
[1724983241767,3.2078,2523.6,2523.3,0.7406]
[1724983241982,3.2078,2523.6,2523.5,0.39621]
[1724983242279,3.2078,2523.6,2523.5,4.35861]
[1724983242875,0.00593871,2523.7,2523.6,0.39619]
[1724983243077,0.00593871,2523.7,2523.6,4.35859]
[1724983243673,0.00593871,2523.7,2523.6,45.15859]
[1724983247483,0.00593871,2523.7,2523.6,44.7624]
[1724983247678,0.00593871,2523.7,2523.6,45.15859]
[1724983248193,0.00593871,2523.7,2523.6,44.7624]
[1724983248885,0.00593871,2523.7,2523.6,45.15859]
[1724983252184,0.00593871,2523.7,2523.6,44.7624]
[1724983254184,0.40211871,2523.7,2523.6,40.8]
[1724983254693,0.00593871,2523.7,2523.6,44.7624]
[1724983255484,0.40211871,2523.7,2523.6,40.8]
[1724983255685,0.00593871,2523.7,2523.6,40.8]
[1724983256283,0.40211871,2523.7,2523.6,40.8]
[1724983256593,0.40211871,2523.7,2523.6,44.7624]
[1724983256887,0.39621,2523.5,2523.4,0.3874]
[1724983257295,0.39621,2523.5,2523.4,41.1874]
[1724983257586,0.39621,2523.5,2523.4,45.1506]
[1724983257992,0.3962,2523.6,2523.4,45.1506]
[1724983258190,1.14282871,2523.7,2523.4,41.58362]
[1724983258796,0.3962,2523.6,2523.4,41.1874]
[1724983258993,0.3962,2523.6,2523.4,41.58363]
[1724983259893,0.77192871,2523.7,2523.4,41.58363]
[1724983261788,0.00593871,2523.7,2523.4,41.1874]
[1724983261991,0.00593871,2523.7,2523.6,0.39619]
[1724983262490,0.00593871,2523.7,2523.6,4.35859]
[1724983262789,0.00593871,2523.7,2523.6,45.15859]
[1724983262995,0.00593871,2523.7,2523.6,41.19619]
[1724983263696,0.00593871,2523.7,2523.6,40.8]
[1724983263887,0.39622,2523.5,2523.3,3.9484]
[1724983264289,0.3817,2523.4,2523.3,48.7116]
[1724983264691,0.77793,2523.4,2523.3,48.7116]
[1724983265197,0.3817,2523.4,2523.3,48.7116]
[1724983266100,0.77793,2523.4,2523.3,3.5613]
[1724983266399,0.3817,2523.4,2523.3,3.5613]
[1724983267105,0.77793,2523.4,2523.3,3.5613]
[1724983267290,0.77793,2523.4,2523.3,3.2078]
[1724983267597,0.39624,2523.3,2523.2,0.00593871]
[1724983267796,1.82624,2523.3,2523.2,0.00593871]
[1724983267999,0.39624,2523.3,2523.2,0.00593871]
[1724983268399,3.9518,2523.6,2523.2,0.40219871]
[1724983268602,4.348,2523.6,2523.2,0.00593871]
[1724983268893,4.348,2523.6,2523.3,1.1181]
[1724983269300,3.2078,2523.6,2523.5,0.39621]
[1724983269498,0.00593871,2523.7,2523.6,0.39619]
[1724983270701,0.00593871,2523.7,2523.6,7.56639]
[1724983271385,0.00593871,2523.7,2523.6,48.36639]
[1724983271592,1.0971,2524.2,2523.6,53.9702]
[1724983271793,1.0971,2524.2,2524.0,0.39612]
[1724983273204,0.7406,2524.2,2523.6,44.0078]
[1724983273494,0.00593871,2524.4,2524.3,0.39609]
[1724983273998,3.83200871,2524.4,2524.1,0.39611]
[1724983274590,0.39609,2524.3,2524.0,1.51032]
[1724983274903,0.3819,2524.2,2524.0,1.51032]
[1724983275094,0.3819,2524.2,2524.1,0.39612]
[1724983275294,0.3819,2524.2,2524.0,1.51032]
[1724983275697,0.3819,2524.2,2523.9,3.2078]
[1724983275698,0.39612,2524.1,2523.9,3.2078]
[1724983275893,0.3961,2524.3,2524.0,0.39613]
[1724983276099,4.18841871,2524.4,2524.1,0.39611]
[1724983276299,3.79233871,2524.4,2523.9,3.2078]
[1724983276597,4.18841871,2524.4,2524.1,0.39611]
[1724983277008,0.39609,2524.3,2524.1,0.39611]
[1724983277401,3.83201871,2524.4,2524.2,0.3961]
[1724983277702,3.43593871,2524.4,2524.2,0.3961]
[1724983278102,3.83200871,2524.4,2524.2,0.3961]
[1724983278303,3.83200871,2524.4,2523.9,4.23803041]
[1724983278304,0.00593871,2524.4,2524.3,0.39609]
[1724983278704,0.00593871,2524.4,2524.3,4.35769]
[1724983279011,1.1192,2524.9,2524.6,0.39603]
[1724983279012,3.9661,2524.9,2524.6,0.39603]
[1724983279612,3.82601,2524.8,2524.5,0.39605]
[1724983280007,0.39602,2524.7,2524.5,0.39605]
[1724983280197,3.82602,2524.8,2524.5,0.39605]
[1724983281004,0.39602,2524.7,2524.5,0.39605]
[1724983282107,0.39602,2524.7,2524.4,0.40199871]
[1724983282302,0.39605,2524.5,2524.4,0.00593871]
[1724983283116,4.35765,2524.5,2524.4,0.00593871]
[1724983283315,11.34779,2524.5,2524.4,0.00593871]
[1724983286022,5.34779,2524.5,2524.4,0.00593871]
[1724983286208,11.34779,2524.5,2524.4,0.00593871]
[1724983286412,5.34779,2524.5,2524.4,0.00593871]
[1724983286613,11.34779,2524.5,2524.4,0.00593871]
[1724983286820,5.34779,2524.5,2524.4,0.00593871]
[1724983287119,11.34779,2524.5,2524.4,0.00593871]
[1724983287916,5.34779,2524.5,2524.4,0.00593871]
[1724983288123,0.39616,2523.8,2523.7,0.7552]
[1724983288333,0.39616,2523.9,2523.7,0.7552]
[1724983288532,0.39616,2523.8,2523.7,0.367]
[1724983288716,0.39619,2523.6,2523.3,7.27910408]
[1724983288921,0.39619,2523.6,2523.3,5.25806552]
[1724983289119,0.39619,2523.6,2523.4,40.8]
[1724983289624,3.82619,2523.7,2523.4,41.19622]
[1724983289831,3.43,2523.7,2523.4,41.19622]
[1724983290320,3.82618,2523.7,2523.4,41.19622]
[1724983290521,0.3962,2523.6,2523.4,40.8]
[1724983291223,3.82619,2523.7,2523.4,41.19622]
[1724983291427,3.43,2523.7,2523.5,0.39621]
[1724983292128,3.82618,2523.7,2523.4,41.19622]
[1724983292333,0.3962,2523.6,2523.4,40.8]
[1724983292734,3.82619,2523.7,2523.4,41.19622]
[1724983293131,0.39619,2523.6,2523.4,40.8]
[1724983293633,0.39621,2523.5,2523.4,40.8]
[1724983295022,0.39623,2523.4,2523.3,0.3901]
[1724983295227,0.76043,2523.4,2523.3,0.3901]
[1724983296237,0.39623,2523.4,2523.3,0.3901]
[1724983297432,3.43,2523.5,2523.2,3.60999871]
[1724983297433,0.39624,2523.3,2523.2,3.21373871]
[1724983297937,0.39623,2523.4,2523.2,3.60999871]
[1724983298924,0.39623,2523.4,2523.2,3.21373871]
[1724983300424,0.39622,2523.5,2523.3,0.39624]
[1724983300937,0.39622,2523.5,2523.4,0.3654]
[1724983303336,3.82622,2523.5,2523.4,0.3654]
[1724983307329,0.00593871,2523.6,2523.4,0.3654]
[1724983307537,0.00593871,2523.6,2523.5,1.15591]
[1724983307925,0.00593871,2523.6,2523.5,5.11831]
[1724983308124,3.2078,2524.0,2523.9,0.39615]
[1724983308830,3.43,2524.3,2524.2,0.3961]
[1724983309032,0.39607,2524.4,2524.1,0.39611]
[1724983309530,0.39607,2524.4,2524.0,1.51732]
[1724983309839,0.39607,2524.4,2524.1,0.39612]
[1724983310836,7.03979871,2524.5,2524.1,0.39612]
[1724983311235,0.39607,2524.4,2524.1,0.39612]
[1724983315429,3.43593871,2524.5,2524.0,1.1212]
[1724983315736,0.00593871,2524.5,2524.4,0.39607]
[1724983316439,0.369,2525.1,2524.9,0.39599]
[1724983316440,7.40277,2525.1,2524.9,0.39599]
[1724983316735,0.39598,2525.0,2524.7,0.39601]
[1724983317537,7.40870871,2525.1,2524.8,0.396]
[1724983318039,7.40870871,2525.1,2524.9,0.3562]
[1724983318534,0.39598,2525.0,2524.9,0.3562]
[1724983319432,7.01273871,2525.1,2524.9,0.75219]
[1724983319636,3.21373871,2525.1,2525.0,0.39598]
[1724983319840,3.21373871,2525.1,2525.0,0.3521]
[1724983320134,3.21373871,2525.1,2524.9,0.3562]
[1724983320530,3.21373871,2525.1,2524.9,0.75218]
[1724983320835,3.21373871,2525.1,2525.0,0.39598]
[1724983321330,3.21373871,2525.1,2525.0,4.74228]
[1724983321331,0.00593871,2525.1,2525.0,4.74228]
[1724983321529,0.00593871,2525.1,2525.0,7.95008]
[1724983323540,3.43,2525.7,2525.5,0.39589]
[1724983323738,3.43,2525.7,2525.6,0.7402]
[1724983323932,0.7191,2525.9,2525.6,0.7402]
[1724983323933,4.54494,2525.9,2525.6,0.7402]
[1724983324642,0.7191,2525.9,2525.6,0.7402]
[1724983324944,3.2078,2526.1,2525.8,0.39585]
[1724983325129,0.39578,2526.3,2525.9,0.39583]
[1724983325537,0.39578,2526.3,2526.0,0.3769]
[1724983326136,7.75046,2526.4,2526.0,0.77271]
[1724983326335,0.39577,2526.3,2526.0,0.77271]
[1724983326541,0.39577,2526.3,2526.0,0.3769]
[1724983327635,0.39579,2526.2,2526.0,0.3769]
[1724983328536,0.39578,2526.3,2526.0,0.3769]
[1724983330851,4.1469,2526.4,2526.0,0.3769]
[1724983330852,0.39579,2526.2,2526.0,0.3769]
[1724983331040,0.39578,2526.3,2526.0,0.3769]
[1724983331346,4.54266,2526.4,2526.0,0.77271]
[1724983331652,0.7169,2526.4,2526.0,0.3769]
[1724983331846,3.8257,2526.8,2526.4,0.39575]
[1724983332047,0.7477,2526.9,2526.5,0.75683]
[1724983332350,0.7477,2526.9,2526.5,0.3611]
[1724983332351,0.3957,2526.8,2526.5,0.3611]
[1724983332537,0.39571,2526.7,2526.5,0.3611]
[1724983332946,0.39571,2526.7,2526.5,4.3187]
[1724983333151,0.39571,2526.7,2526.5,0.3611]
[1724983333446,3.82571,2526.8,2526.5,0.3611]
[1724983333650,3.82571,2526.8,2526.5,0.75683]
[1724983333952,0.7477,2526.9,2526.5,0.75683]
[1724983333953,1.14338,2526.9,2526.5,0.75683]
[1724983334155,1.14338,2526.9,2526.6,0.3792]
[1724983334447,0.39569,2526.8,2526.6,0.3792]
[1724983334639,1.14338,2526.9,2526.6,0.77492]
[1724983334843,1.14338,2526.9,2526.6,0.3792]
[1724983335040,0.39569,2526.8,2526.6,0.3792]
[1724983335739,1.14339,2526.9,2526.6,0.3792]
[1724983336447,0.39569,2526.8,2526.6,0.3792]
[1724983337446,1.14339,2526.9,2526.6,0.77492]
[1724983337753,0.7477,2526.9,2526.6,0.77492]
[1724983337961,0.3804,2526.9,2526.6,0.77492]
[1724983338254,0.3804,2526.9,2526.7,0.39571]
[1724983339855,3.60347,2527.0,2526.7,0.39571]
[1724983340558,3.60347,2527.0,2526.6,0.3792]
[1724983340856,3.60347,2527.0,2526.6,0.77491]
[1724983341447,0.39567,2527.0,2526.6,0.77491]
[1724983342447,7.7356,2527.2,2526.6,0.77491]
[1724983342649,0.39568,2526.9,2526.6,0.3792]
[1724983342851,0.3639,2526.8,2526.6,0.3792]
[1724983343550,0.3639,2526.8,2526.6,0.77492]
[1724983343746,0.3639,2526.8,2526.7,0.39571]
[1724983344053,0.75705,2527.1,2526.8,0.39568]
[1724983344355,3.5744,2527.2,2527.0,0.39565]
[1724983344555,3.5744,2527.2,2527.1,0.352]
[1724983345152,3.2078,2527.2,2527.1,0.74765]
[1724983345457,0.3614,2527.3,2527.1,0.74765]
[1724983345656,0.3614,2527.3,2527.2,0.39563]
[1724983346252,0.3614,2527.3,2527.2,0.76113]
[1724983346452,0.3765,2527.6,2527.2,0.76113]
[1724983346453,0.3765,2527.6,2527.4,0.3956]
[1724983347356,0.3765,2527.6,2527.3,0.39561]
[1724983347956,0.3765,2527.6,2527.4,0.3956]
[1724983349060,0.3765,2527.6,2527.3,0.39561]
[1724983349358,0.3765,2527.6,2527.2,1.12255871]
[1724983349359,0.77207,2527.6,2527.2,1.12255871]
[1724983349566,0.39559,2527.5,2527.2,0.40155871]
[1724983350062,0.39559,2527.5,2527.2,0.00593871]
[1724983350456,0.39559,2527.5,2527.2,0.40156871]
[1724983350651,0.77208,2527.6,2527.3,0.39561]
[1724983350958,0.77208,2527.6,2527.3,0.76891]
[1724983351463,0.77208,2527.6,2527.3,0.3733]
[1724983351663,0.3765,2527.6,2527.3,0.3733]
[1724983351966,0.39558,2527.5,2527.2,0.00593871]
[1724983352573,0.3956,2527.4,2527.2,0.00593871]
[1724983352862,0.39559,2527.5,2527.2,0.40156871]
[1724983353459,0.3956,2527.4,2527.2,0.00593871]
[1724983353654,0.3956,2527.5,2527.2,0.00593871]
[1724983353870,0.3956,2527.4,2527.2,0.00593871]
[1724983355968,0.39561,2527.3,2527.2,0.00593871]
[1724983356177,0.77551,2527.3,2527.2,0.00593871]
[1724983356758,1.76455,2527.3,2527.2,0.00593871]
[1724983356974,5.72135,2527.3,2527.2,0.00593871]
[1724983357171,0.39573,2526.6,2526.4,7.30062552]
[1724983357370,0.39573,2526.6,2526.4,3.9161]
[1724983358069,0.00593871,2526.8,2526.3,47.4378]
[1724983358259,0.39576,2526.4,2526.3,44.0078]
[1724983359080,0.39575,2526.5,2526.3,44.0078]
[1724983359488,0.39573,2526.6,2526.3,44.0078]
[1724983359691,0.39573,2526.6,2526.4,0.3523]
[1724983362097,0.3699,2526.7,2526.4,0.7408]
[1724983362098,0.39572,2526.7,2526.4,0.7408]
[1724983362387,0.39573,2526.6,2526.4,0.7408]
[1724983364991,0.39575,2526.5,2526.3,44.23]
[1724983367689,0.39573,2526.6,2526.3,44.23]
[1724983368292,0.39573,2526.6,2526.4,0.3853]
[1724983368696,0.39573,2526.6,2526.5,0.3546]
[1724983369389,0.39574,2526.5,2526.3,44.23]
[1724983370598,0.39573,2526.6,2526.3,44.62577]
[1724983371094,0.39573,2526.6,2526.3,44.23]
[1724983371290,0.39573,2526.6,2526.3,44.62577]
[1724983375999,0.39573,2526.6,2526.3,42.62577]
[1724983379004,3.98834871,2526.8,2526.5,0.39573]
[1724983379207,3.98834871,2526.8,2526.6,0.3626]
[1724983379694,3.59263871,2526.8,2526.6,1.13112]
[1724983380496,0.00593871,2526.8,2526.6,2.56112]
[1724983380801,0.00593871,2526.8,2526.6,0.7354]
[1724983381004,0.00593871,2526.8,2526.6,1.13112]
[1724983381802,0.00593871,2526.8,2526.6,2.56111]
[1724983382507,0.00593871,2526.8,2526.7,0.39571]
[1724983382802,0.00593871,2526.8,2526.6,2.1654]
[1724983382803,0.00593871,2526.8,2526.6,2.56112]
[1724983384697,0.00593871,2526.8,2526.6,2.1654]
[1724983385395,0.40163871,2526.8,2526.6,2.1654]
[1724983386095,0.40163871,2526.8,2526.6,0.7354]
[1724983391806,0.00593871,2526.8,2526.6,2.56112]
[1724983392006,0.40162871,2526.8,2526.6,2.1654]
[1724983394609,0.00593871,2526.8,2526.6,2.56112]
[1724983395499,0.40162871,2526.8,2526.6,2.1654]
[1724983396499,0.00593871,2526.8,2526.6,2.56112]
[1724983397007,0.40162871,2526.8,2526.6,2.56112]
[1724983397910,0.40162871,2526.8,2526.6,2.1654]
[1724983399504,0.40162871,2526.8,2526.6,3.19563041]
[1724983399706,0.40162871,2526.8,2526.6,2.1654]
[1724983400098,0.39571,2526.7,2526.6,0.7354]
[1724983400299,0.39572,2526.6,2526.5,1.03023041]
[1724983400504,0.39572,2526.6,2526.3,42.71184562]
[1724983400505,0.39576,2526.4,2526.3,42.71184562]
[1724983400810,1.49073,2526.6,2526.3,46.07695647]
[1724983401110,1.49073,2526.6,2526.4,2.46702441]
[1724983401315,0.7317,2526.6,2526.4,2.46702441]
[1724983401513,0.39572,2526.7,2526.5,1.03702441]
[1724983402021,3.60943871,2526.8,2526.6,1.03702441]
[1724983402210,3.60943871,2526.8,2526.6,1.78132441]
[1724983402405,3.60943871,2526.8,2526.7,0.363]
[1724983402608,3.60943871,2526.8,2526.7,1.40002441]
[1724983403006,3.60943871,2526.8,2526.7,0.363]
[1724983403419,0.40163871,2526.8,2526.7,0.363]
[1724983403707,0.00593871,2526.8,2526.7,0.363]
[1724983403919,0.00593871,2526.8,2526.7,1.40002441]
[1724983404306,0.40162871,2526.8,2526.7,1.40002441]
[1724983405110,0.40162871,2526.8,2526.7,0.363]
[1724983405312,0.00593871,2526.8,2526.7,0.363]
[1724983405917,0.40162871,2526.8,2526.7,1.40002441]
[1724983406308,0.40162871,2526.8,2526.7,0.363]
[1724983407206,0.40162871,2526.8,2526.7,1.40002441]
[1724983407703,0.40162871,2526.8,2526.7,0.363]
[1724983408309,0.40162871,2526.8,2526.7,1.40002441]
[1724983408803,0.40162871,2526.8,2526.7,0.363]
[1724983408804,0.00593871,2526.8,2526.7,0.363]
[1724983409822,0.00593871,2526.8,2526.7,1.40002441]
[1724983411811,0.40162871,2526.8,2526.7,0.363]
[1724983412014,0.40162871,2526.8,2526.6,2.96617003]
[1724983412015,0.39571,2526.7,2526.6,0.3838]
[1724983412220,0.76701,2526.7,2526.6,1.42082441]
[1724983413013,0.76701,2526.7,2526.6,1.03702441]
[1724983413213,0.39572,2526.6,2526.5,1.03702441]
[1724983413415,0.39574,2526.5,2526.4,1.03702441]
[1724983413613,0.39574,2526.5,2526.4,4.40241644]
[1724983413812,0.39574,2526.5,2526.4,4.40230389]
[1724983414015,0.39573,2526.6,2526.4,1.03702441]
[1724983414217,0.39573,2526.6,2526.5,1.39252441]